[Event "Grandmaster Triathlon - Blitz (GM2)"]
[Site "Biel, Switzerland"]
[Date "2026.07.19"]
[Round "10.3"]
[White "Vaishali, Rameshbabu"]
[Black "Kosteniuk, Alexandra"]
[Result "0-1"]
[TimeControl "3 + 2"]
[WhiteTitle "-"]
[BlackTitle "-"]
[WhiteFideId "5091756"]
[BlackFideId "4128125"]
[WhiteElo "2364"]
[BlackElo "2392"]

1. Nc3 {[%clk 00:03:02]} {[%emt 00:00:01]} d5 {[%clk 00:02:59]} {[%emt
00:00:05]} 2. e4 {[%clk 00:03:02]} {[%emt 00:00:02]} d4 {[%clk 00:02:52]}
{[%emt 00:00:10]} 3. Nce2 {[%clk 00:03:03]} {[%emt 00:00:01]} e5 {[%clk
00:02:47]} {[%emt 00:00:07]} 4. d3 {[%clk 00:02:59]} {[%emt 00:00:06]} c5
{[%clk 00:02:39]} {[%emt 00:00:10]} 5. g3 {[%clk 00:02:59]} {[%emt 00:00:02]}
Nc6 {[%clk 00:02:39]} {[%emt 00:00:01]} 6. Bg2 {[%clk 00:03:00]} Nf6 {[%clk
00:02:40]} {[%emt 00:00:01]} 7. h3 {[%clk 00:03:00]} {[%emt 00:00:02]} Bd6
{[%clk 00:02:38]} {[%emt 00:00:04]} 8. Nf3 {[%clk 00:02:50]} {[%emt 00:00:12]}
h6 {[%clk 00:02:38]} {[%emt 00:00:02]} 9. O-O {[%clk 00:02:50]} {[%emt
00:00:02]} g5 {[%clk 00:02:37]} {[%emt 00:00:03]} 10. a4 {[%clk 00:02:29]}
{[%emt 00:00:23]} Be6 {[%clk 00:02:36]} {[%emt 00:00:03]} 11. Kh2 {[%clk
00:02:21]} {[%emt 00:00:10]} Qd7 {[%clk 00:02:35]} {[%emt 00:00:03]} 12. a5
{[%clk 00:02:06]} {[%emt 00:00:17]} O-O-O {[%clk 00:02:31]} {[%emt 00:00:06]}
13. a6 {[%clk 00:02:06]} {[%emt 00:00:02]} b6 {[%clk 00:02:31]} {[%emt
00:00:03]} 14. c3 {[%clk 00:01:55]} {[%emt 00:00:13]} Rdg8 {[%clk 00:02:25]}
{[%emt 00:00:07]} 15. Qa4 {[%clk 00:01:39]} {[%emt 00:00:18]} Na5 {[%clk
00:01:54]} {[%emt 00:00:33]} 16. cxd4 {[%clk 00:01:20]} {[%emt 00:00:22]} cxd4
{[%clk 00:01:39]} {[%emt 00:00:16]} 17. Bd2 {[%clk 00:00:48]} {[%emt 00:00:34]}
Nb3 {[%clk 00:01:31]} {[%emt 00:00:11]} 18. Qxd7+ {[%clk 00:00:09]} {[%emt
00:00:40]} Nxd7 {[%clk 00:01:32]} 19. Rab1 {[%clk 00:00:08]} {[%emt 00:00:04]}
Ndc5 {[%clk 00:01:23]} {[%emt 00:00:11]} 20. Bb4 {[%clk 00:00:06]} {[%emt
00:00:03]} Kd7 {[%clk 00:01:22]} {[%emt 00:00:03]} 21. Nc1 {[%clk 00:00:05]}
{[%emt 00:00:03]} Nxc1 {[%clk 00:01:12]} {[%emt 00:00:11]} 22. Bxc5 {[%clk
00:00:06]} {[%emt 00:00:01]} Nxd3 {[%clk 00:01:11]} {[%emt 00:00:03]} 23. Bxd6
{[%clk 00:00:07]} {[%emt 00:00:01]} Kxd6 {[%clk 00:01:12]} {[%emt 00:00:01]} 24.
b4 {[%clk 00:00:07]} {[%emt 00:00:02]} Rc8 {[%clk 00:01:06]} {[%emt 00:00:08]}
25. h4 {[%clk 00:00:06]} {[%emt 00:00:03]} f6 {[%clk 00:00:57]} {[%emt
00:00:11]} 26. Ne1 {[%clk 00:00:07]} {[%emt 00:00:02]} Bc4 {[%clk 00:00:55]}
{[%emt 00:00:03]} 27. Rg1 {[%clk 00:00:05]} {[%emt 00:00:04]} Nxf2 {[%clk
00:00:55]} {[%emt 00:00:02]} 28. Nf3 {[%clk 00:00:05]} {[%emt 00:00:02]} Ng4+
{[%clk 00:00:52]} {[%emt 00:00:05]} 29. Kh1 {[%clk 00:00:07]} Ne3 {[%clk
00:00:48]} {[%emt 00:00:06]} 30. Nd2 {[%clk 00:00:05]} {[%emt 00:00:04]} Be6
{[%clk 00:00:41]} {[%emt 00:00:10]} 31. b5 {[%clk 00:00:04]} {[%emt 00:00:03]}
Rc2 {[%clk 00:00:37]} {[%emt 00:00:06]} 0-1